[Event "Titled Tuesday Blitz September 28 2021"]
[White "Zhalmakhanov, Ramazan"]
[Black "Perez Gormaz, Matias"]
[WhiteFideId "13706357"]
[BlackFideId "3406342"]
[WhiteElo "2531"]
[BlackElo "2352"]
[Result "1-0"]
[Round "03"]
[TimeControl "180+1"]
[Date "2021.09.28"]
[WhiteClock "0:00:40"]
[BlackClock "0:00:02"]

1. e4 {[%clk 0:03:00]}  c5 {[%clk 0:02:59]} 2. Nc3 {[%clk 0:03:00]}  Nc6 {[%clk 0:02:59]} 3. f4 {[%clk 0:03:00]}  g6 {[%clk 0:03:00]} 4. Nf3 {[%clk 0:03:00]}  Bg7 {[%clk 0:03:00]} 5. Bc4 {[%clk 0:03:01]}  e6 {[%clk 0:03:00]} 6. f5 {[%clk 0:03:02]}  Nge7 {[%clk 0:03:00]} 7. fxe6 {[%clk 0:02:57]}  dxe6 {[%clk 0:03:01]} 8. d3 {[%clk 0:02:56]}  O-O {[%clk 0:02:58]} 9. O-O {[%clk 0:02:56]}  a6 {[%clk 0:02:55]} 10. a4 {[%clk 0:02:54]}  h6 {[%clk 0:02:46]} 11. Qe1 {[%clk 0:02:54]}  Nb4 {[%clk 0:02:39]} 12. Bb3 {[%clk 0:02:42]}  Nec6 {[%clk 0:02:40]} 13. Kh1 {[%clk 0:02:25]}  Na5 {[%clk 0:02:34]} 14. Qg3 {[%clk 0:02:00]}  Nxb3 {[%clk 0:02:19]} 15. cxb3 {[%clk 0:02:01]}  Qxd3 {[%clk 0:02:15]} 16. Bf4 {[%clk 0:01:58]}  Nc6 {[%clk 0:01:13]} 17. Rad1 {[%clk 0:01:48]}  Qc2 {[%clk 0:01:12]} 18. Qh4 {[%clk 0:01:40]}  h5 {[%clk 0:01:04]} 19. e5 {[%clk 0:01:35]}  b6 {[%clk 0:00:47]} 20. Rd2 {[%clk 0:01:30]}  Qxb3 {[%clk 0:00:42]} 21. Ne4 {[%clk 0:01:28]}  Qc4 {[%clk 0:00:42]} 22. Re1 {[%clk 0:01:27]}  Bb7 {[%clk 0:00:34]} 23. Nd6 {[%clk 0:01:08]}  Qxa4 {[%clk 0:00:28]} 24. Nxb7 {[%clk 0:01:08]}  Rac8 {[%clk 0:00:07]} 25. Nd6 {[%clk 0:01:02]}  Rcd8 {[%clk 0:00:07]} 26. Qg3 {[%clk 0:00:58]}  Rd7 {[%clk 0:00:07]} 27. h3 {[%clk 0:00:58]}  Rfd8 {[%clk 0:00:07]} 28. Red1 {[%clk 0:00:58]}  Qb4 {[%clk 0:00:05]} 29. Ng5 {[%clk 0:00:55]}  Qa5 {[%clk 0:00:02]} 30. Rf1 {[%clk 0:00:41]}  b5 {[%clk 0:00:01]} 31. Ngxf7 {[%clk 0:00:40]}  Rxf7 {[%clk 0:00:01]} 32. Nxf7 {[%clk 0:00:41]}  Rxd2 {[%clk 0:00:02]} 33. Bxd2 {[%clk 0:00:41]}  Qxd2 {[%clk 0:00:02]} 34. Qxg6 {[%clk 0:00:40]}  Qd3 {[%clk 0:00:02]} 35. Qxd3 {[%clk 0:00:40]} 1-0


[Site "https://www.chess.com"]

[Event "Titled Tuesday Blitz September 28 2021"]
[White "Al-Tarboush, Ward"]
[Black "Seo, Jung Min"]
[WhiteFideId "7601450"]
[BlackFideId "1734687"]
[WhiteElo "2319"]
[BlackElo "2486"]
[Result "0-1"]
[Round "04"]
[TimeControl "180+1"]
[Date "2021.09.28"]
[WhiteClock "0:00:03"]
[BlackClock "0:00:30"]

1. e4 {[%clk 0:03:00]}  c5 {[%clk 0:02:59]} 2. Nf3 {[%clk 0:03:01]}  Nc6 {[%clk 0:02:59]} 3. d4 {[%clk 0:03:01]}  cxd4 {[%clk 0:03:00]} 4. Nxd4 {[%clk 0:03:02]}  Qb6 {[%clk 0:03:00]} 5. Nb3 {[%clk 0:03:01]}  Nf6 {[%clk 0:03:00]} 6. Nc3 {[%clk 0:02:58]}  e6 {[%clk 0:03:00]} 7. Be3 {[%clk 0:02:58]}  Qc7 {[%clk 0:03:00]} 8. Be2 {[%clk 0:02:57]}  a6 {[%clk 0:03:00]} 9. O-O {[%clk 0:02:57]}  b5 {[%clk 0:03:00]} 10. a3 {[%clk 0:02:52]}  Be7 {[%clk 0:02:51]} 11. Qd2 {[%clk 0:02:46]}  O-O {[%clk 0:02:50]} 12. Rad1 {[%clk 0:02:47]}  d6 {[%clk 0:02:49]} 13. f4 {[%clk 0:02:45]}  Bb7 {[%clk 0:02:46]} 14. Bf3 {[%clk 0:02:45]}  Rad8 {[%clk 0:02:43]} 15. g4 {[%clk 0:02:39]}  Nd7 {[%clk 0:02:38]} 16. Qg2 {[%clk 0:02:33]}  Nc5 {[%clk 0:02:36]} 17. g5 {[%clk 0:02:28]}  Rfe8 {[%clk 0:02:24]} 18. h4 {[%clk 0:02:25]}  b4 {[%clk 0:02:17]} 19. axb4 {[%clk 0:02:05]}  Nxb4 {[%clk 0:02:16]} 20. h5 {[%clk 0:01:58]}  Bf8 {[%clk 0:02:06]} 21. g6 {[%clk 0:01:55]}  fxg6 {[%clk 0:02:00]} 22. hxg6 {[%clk 0:01:55]}  h6 {[%clk 0:02:01]} 23. Rde1 {[%clk 0:01:25]}  Nxb3 {[%clk 0:01:58]} 24. cxb3 {[%clk 0:01:23]}  d5 {[%clk 0:01:47]} 25. exd5 {[%clk 0:01:17]}  exd5 {[%clk 0:01:43]} 26. Kh1 {[%clk 0:00:35]}  Ba8 {[%clk 0:01:17]} 27. Bd4 {[%clk 0:00:32]}  Rxe1 {[%clk 0:01:15]} 28. Rxe1 {[%clk 0:00:33]}  Qxf4 {[%clk 0:01:14]} 29. Rd1 {[%clk 0:00:19]}  Qf5 {[%clk 0:00:49]} 30. Bg1 {[%clk 0:00:16]}  Rd6 {[%clk 0:00:46]} 31. Rf1 {[%clk 0:00:04]}  Rxg6 {[%clk 0:00:41]} 32. Qe2 {[%clk 0:00:02]}  Qh3+ {[%clk 0:00:39]} 33. Bh2 {[%clk 0:00:03]}  Rf6 {[%clk 0:00:35]} 34. Bg2 {[%clk 0:00:02]}  Rxf1+ {[%clk 0:00:35]} 35. Qxf1 {[%clk 0:00:03]}  Qe6 {[%clk 0:00:33]} 36. Bh3 {[%clk 0:00:03]}  d4+ {[%clk 0:00:33]} 37. Kg1 {[%clk 0:00:03]}  Qg6+ {[%clk 0:00:31]} 38. Bg2 {[%clk 0:00:02]}  Bxg2 {[%clk 0:00:30]} 39. Qc4+ {[%clk 0:00:03]}  Bd5+ {[%clk 0:00:30]} 0-1


[Site "https://www.chess.com"]

[Event "Titled Tuesday Blitz September 28 2021"]
[White "Avila Pavas, Santiago"]
[Black "Moskalenko, Alexander"]
[WhiteFideId "4437128"]
[BlackFideId "4155351"]
[WhiteElo "2292"]
[BlackElo "2515"]
[Result "1-0"]
[Round "04"]
[TimeControl "180+1"]
[Date "2021.09.28"]
[WhiteClock "0:01:13"]
[BlackClock "0:00:30"]

1. Nf3 {[%clk 0:03:00]}  g6 {[%clk 0:01:53]} 2. d4 {[%clk 0:02:58]}  Bg7 {[%clk 0:01:54]} 3. e4 {[%clk 0:02:58]}  c6 {[%clk 0:01:53]} 4. c3 {[%clk 0:02:54]}  d5 {[%clk 0:01:54]} 5. e5 {[%clk 0:02:54]}  f6 {[%clk 0:01:47]} 6. Bf4 {[%clk 0:02:49]}  Nh6 {[%clk 0:01:42]} 7. Bd3 {[%clk 0:02:41]}  Bf5 {[%clk 0:01:41]} 8. exf6 {[%clk 0:02:34]}  exf6 {[%clk 0:01:25]} 9. Bxh6 {[%clk 0:02:34]}  Qe7+ {[%clk 0:01:20]} 10. Be3 {[%clk 0:02:34]}  Be4 {[%clk 0:01:13]} 11. Bxe4 {[%clk 0:02:25]}  dxe4 {[%clk 0:01:12]} 12. Nfd2 {[%clk 0:02:25]}  f5 {[%clk 0:01:13]} 13. Qb3 {[%clk 0:02:20]}  Na6 {[%clk 0:01:10]} 14. Na3 {[%clk 0:02:18]}  g5 {[%clk 0:01:09]} 15. g3 {[%clk 0:02:17]}  Bh6 {[%clk 0:01:09]} 16. f4 {[%clk 0:01:36]}  exf3 {[%clk 0:01:08]} 17. O-O-O {[%clk 0:01:32]}  O-O-O {[%clk 0:00:55]} 18. Rhe1 {[%clk 0:01:32]}  Qf6 {[%clk 0:00:42]} 19. Nxf3 {[%clk 0:01:32]}  f4 {[%clk 0:00:41]} 20. gxf4 {[%clk 0:01:32]}  g4 {[%clk 0:00:41]} 21. Ne5 {[%clk 0:01:31]}  Bxf4 {[%clk 0:00:42]} 22. Nxg4 {[%clk 0:01:20]}  Qg5 {[%clk 0:00:32]} 23. Qe6+ {[%clk 0:01:19]}  Kb8 {[%clk 0:00:32]} 24. Qe5+ {[%clk 0:01:14]}  Qxe5 {[%clk 0:00:30]} 25. Nxe5 {[%clk 0:01:13]} 1-0


[Site "https://www.chess.com"]

[Event "Titled Tuesday Blitz September 28 2021"]
[White "Balabayeva, Xeniya"]
[Black "Gallego Alcaraz, Andres Felipe"]
[WhiteFideId "13719688"]
[BlackFideId "4402669"]
[WhiteElo "1965"]
[BlackElo "2394"]
[Result "1-0"]
[Round "04"]
[TimeControl "180+1"]
[Date "2021.09.28"]
[WhiteClock "0:00:13"]
[BlackClock "0:00:21"]

1. e4 {[%clk 0:03:00]}  d6 {[%clk 0:02:57]} 2. d4 {[%clk 0:03:00]}  Nf6 {[%clk 0:02:57]} 3. Nc3 {[%clk 0:03:00]}  g6 {[%clk 0:02:57]} 4. g3 {[%clk 0:03:00]}  c6 {[%clk 0:02:55]} 5. a4 {[%clk 0:02:59]}  Bg7 {[%clk 0:02:54]} 6. Bg2 {[%clk 0:02:59]}  Nbd7 {[%clk 0:02:54]} 7. Nge2 {[%clk 0:02:59]}  e5 {[%clk 0:02:53]} 8. O-O {[%clk 0:02:57]}  O-O {[%clk 0:02:53]} 9. h3 {[%clk 0:02:55]}  Re8 {[%clk 0:02:53]} 10. Re1 {[%clk 0:02:54]}  b6 {[%clk 0:02:50]} 11. Be3 {[%clk 0:02:29]}  Bb7 {[%clk 0:02:49]} 12. Qd2 {[%clk 0:02:22]}  exd4 {[%clk 0:02:42]} 13. Nxd4 {[%clk 0:02:18]}  Nc5 {[%clk 0:02:42]} 14. Bf4 {[%clk 0:02:03]}  Nh5 {[%clk 0:02:35]} 15. Be3 {[%clk 0:01:55]}  Nf6 {[%clk 0:02:12]} 16. Bf4 {[%clk 0:01:50]}  Ne6 {[%clk 0:02:07]} 17. Nxe6 {[%clk 0:01:46]}  Rxe6 {[%clk 0:02:07]} 18. Rad1 {[%clk 0:01:42]}  Bf8 {[%clk 0:01:47]} 19. e5 {[%clk 0:01:11]}  Nh5 {[%clk 0:01:33]} 20. Bg5 {[%clk 0:01:07]}  Qd7 {[%clk 0:01:32]} 21. g4 {[%clk 0:01:03]}  h6 {[%clk 0:01:24]} 22. Be3 {[%clk 0:00:51]}  Ng7 {[%clk 0:01:22]} 23. Ne4 {[%clk 0:00:50]}  d5 {[%clk 0:01:05]} 24. Nf6+ {[%clk 0:00:47]}  Rxf6 {[%clk 0:01:04]} 25. exf6 {[%clk 0:00:48]}  Ne8 {[%clk 0:01:05]} 26. Bxh6 {[%clk 0:00:40]}  Nxf6 {[%clk 0:01:05]} 27. Bxf8 {[%clk 0:00:38]}  Rxf8 {[%clk 0:01:05]} 28. Qf4 {[%clk 0:00:38]}  Ne8 {[%clk 0:00:58]} 29. Re2 {[%clk 0:00:34]}  Nd6 {[%clk 0:00:54]} 30. Rde1 {[%clk 0:00:33]}  Re8 {[%clk 0:00:48]} 31. Rxe8+ {[%clk 0:00:31]}  Nxe8 {[%clk 0:00:49]} 32. h4 {[%clk 0:00:28]}  Ng7 {[%clk 0:00:44]} 33. Bf3 {[%clk 0:00:25]}  Ne6 {[%clk 0:00:40]} 34. Qf6 {[%clk 0:00:24]}  Qd6 {[%clk 0:00:35]} 35. h5 {[%clk 0:00:24]}  g5 {[%clk 0:00:31]} 36. h6 {[%clk 0:00:20]}  Qf8 {[%clk 0:00:31]} 37. Re5 {[%clk 0:00:16]}  Kh7 {[%clk 0:00:30]} 38. Be2 {[%clk 0:00:16]}  Nf4 {[%clk 0:00:24]} 39. Bd3+ {[%clk 0:00:12]}  Nxd3 {[%clk 0:00:24]} 40. cxd3 {[%clk 0:00:13]}  Qxh6 {[%clk 0:00:20]} 41. Qxf7+ {[%clk 0:00:13]}  Qg7 {[%clk 0:00:20]} 42. Qxg7+ {[%clk 0:00:13]}  Kxg7 {[%clk 0:00:21]} 43. Re7+ {[%clk 0:00:13]} 1-0


[Site "https://www.chess.com"]

[Event "Titled Tuesday Blitz September 28 2021"]
[White "Begmuratov, Khumoyun"]
[Black "Ozates, Tuna"]
[WhiteFideId "14210207"]
[BlackFideId "6354521"]
[WhiteElo "1948"]
[BlackElo "1872"]
[Result "0-1"]
[Round "04"]
[TimeControl "180+1"]
[Date "2021.09.28"]
[WhiteClock "0:00:03"]
[BlackClock "0:00:54"]

1. e4 {[%clk 0:03:00]}  e5 {[%clk 0:02:55]} 2. Nf3 {[%clk 0:03:00]}  Nc6 {[%clk 0:02:52]} 3. d4 {[%clk 0:03:00]}  exd4 {[%clk 0:02:53]} 4. Nxd4 {[%clk 0:03:01]}  Nf6 {[%clk 0:02:52]} 5. Nc3 {[%clk 0:03:00]}  Bb4 {[%clk 0:02:51]} 6. Nxc6 {[%clk 0:02:59]}  bxc6 {[%clk 0:02:52]} 7. Bd3 {[%clk 0:02:59]}  d5 {[%clk 0:02:52]} 8. exd5 {[%clk 0:02:58]}  O-O {[%clk 0:02:52]} 9. O-O {[%clk 0:02:57]}  cxd5 {[%clk 0:02:52]} 10. Qf3 {[%clk 0:02:56]}  c6 {[%clk 0:02:49]} 11. h3 {[%clk 0:02:55]}  h6 {[%clk 0:02:48]} 12. Bf4 {[%clk 0:02:53]}  Re8 {[%clk 0:02:45]} 13. Rad1 {[%clk 0:02:52]}  Bd6 {[%clk 0:02:43]} 14. Ne2 {[%clk 0:02:49]}  Rb8 {[%clk 0:02:40]} 15. b3 {[%clk 0:02:47]}  Rb4 {[%clk 0:02:40]} 16. c3 {[%clk 0:02:43]}  Rb6 {[%clk 0:02:30]} 17. c4 {[%clk 0:02:41]}  Be6 {[%clk 0:02:18]} 18. Nd4 {[%clk 0:02:27]}  c5 {[%clk 0:02:11]} 19. Nf5 {[%clk 0:02:03]}  Bxf4 {[%clk 0:02:07]} 20. Qxf4 {[%clk 0:02:02]}  d4 {[%clk 0:02:06]} 21. Rfe1 {[%clk 0:01:58]}  Ra6 {[%clk 0:01:52]} 22. a4 {[%clk 0:01:24]}  Rb6 {[%clk 0:01:52]} 23. Bc2 {[%clk 0:01:22]}  Qb8 {[%clk 0:01:50]} 24. Qxb8 {[%clk 0:01:01]}  Rexb8 {[%clk 0:01:46]} 25. Ng3 {[%clk 0:00:56]}  a5 {[%clk 0:01:43]} 26. Ne2 {[%clk 0:00:56]}  g5 {[%clk 0:01:35]} 27. Nc1 {[%clk 0:00:54]}  Rc8 {[%clk 0:01:31]} 28. Nd3 {[%clk 0:00:53]}  Bf5 {[%clk 0:01:31]} 29. Re5 {[%clk 0:00:52]}  Bg6 {[%clk 0:01:31]} 30. Rd2 {[%clk 0:00:47]}  Ne4 {[%clk 0:01:31]} 31. Re2 {[%clk 0:00:43]}  Nc3 {[%clk 0:01:31]} 32. Rd2 {[%clk 0:00:43]}  Rbc6 {[%clk 0:01:24]} 33. f3 {[%clk 0:00:39]}  Kf8 {[%clk 0:01:17]} 34. Kf2 {[%clk 0:00:38]}  f6 {[%clk 0:01:17]} 35. Re1 {[%clk 0:00:27]}  h5 {[%clk 0:01:15]} 36. g4 {[%clk 0:00:24]}  hxg4 {[%clk 0:01:14]} 37. hxg4 {[%clk 0:00:24]}  Kf7 {[%clk 0:01:12]} 38. Kg3 {[%clk 0:00:20]}  Rh8 {[%clk 0:01:06]} 39. Rg2 {[%clk 0:00:17]}  Rcc8 {[%clk 0:01:04]} 40. Rf2 {[%clk 0:00:14]}  Rh4 {[%clk 0:01:00]} 41. f4 {[%clk 0:00:12]}  Ne4+ {[%clk 0:00:58]} 42. Rxe4 {[%clk 0:00:12]}  Bxe4 {[%clk 0:00:59]} 43. fxg5 {[%clk 0:00:12]}  Rch8 {[%clk 0:00:53]} 44. Ne5+ {[%clk 0:00:11]}  Ke6 {[%clk 0:00:53]} 45. Bxe4 {[%clk 0:00:05]}  Kxe5 {[%clk 0:00:52]} 46. Bf5 {[%clk 0:00:02]}  Rh3+ {[%clk 0:00:52]} 47. Kg2 {[%clk 0:00:02]}  Rh2+ {[%clk 0:00:52]} 48. Kg3 {[%clk 0:00:03]}  Rxf2 {[%clk 0:00:53]} 49. Kxf2 {[%clk 0:00:03]}  fxg5 {[%clk 0:00:54]} 0-1


[Site "https://www.chess.com"]

[Event "Titled Tuesday Blitz September 28 2021"]
[White "Bok, Benjamin"]
[Black "pawel83"]
[WhiteFideId "1017063"]
[WhiteElo "2658"]
[BlackElo "2405"]
[Result "1-0"]
[Round "04"]
[TimeControl "180+1"]
[Date "2021.09.28"]
[WhiteClock "0:02:19"]
[BlackClock "0:02:17"]

1. d4 {[%clk 0:02:59]}  Nf6 {[%clk 0:02:59]} 2. c4 {[%clk 0:02:59]}  g6 {[%clk 0:02:59]} 3. g3 {[%clk 0:02:59]}  Bg7 {[%clk 0:03:00]} 4. Bg2 {[%clk 0:02:59]}  O-O {[%clk 0:02:59]} 5. Nc3 {[%clk 0:02:59]}  d6 {[%clk 0:03:00]} 6. Nf3 {[%clk 0:02:59]}  Nc6 {[%clk 0:03:01]} 7. O-O {[%clk 0:03:00]}  e5 {[%clk 0:03:01]} 8. dxe5 {[%clk 0:03:00]}  dxe5 {[%clk 0:03:01]} 9. Bg5 {[%clk 0:02:59]}  Qxd1 {[%clk 0:03:00]} 10. Rfxd1 {[%clk 0:02:58]}  h6 {[%clk 0:03:00]} 11. Be3 {[%clk 0:02:45]}  Re8 {[%clk 0:02:50]} 12. Nb5 {[%clk 0:02:32]}  Rf8 {[%clk 0:02:21]} 13. Nxc7 {[%clk 0:02:20]}  Rb8 {[%clk 0:02:19]} 14. Bc5 {[%clk 0:02:20]}  Rd8 {[%clk 0:02:16]} 15. Rxd8+ {[%clk 0:02:20]}  Nxd8 {[%clk 0:02:17]} 16. Bxa7 {[%clk 0:02:19]} 1-0


[Site "https://www.chess.com"]

[Event "Titled Tuesday Blitz September 28 2021"]
[White "Coto Mederos, Michel"]
[Black "Assaubayeva, Bibisara"]
[WhiteFideId "3508528"]
[BlackFideId "13708694"]
[WhiteElo "2427"]
[BlackElo "2232"]
[Result "1/2-1/2"]
[Round "04"]
[TimeControl "180+1"]
[Date "2021.09.28"]
[WhiteClock "0:00:08"]
[BlackClock "0:00:03"]

1. c4 {[%clk 0:03:00]}  Nf6 {[%clk 0:02:58]} 2. Nc3 {[%clk 0:03:00]}  g6 {[%clk 0:02:55]} 3. g3 {[%clk 0:02:58]}  Bg7 {[%clk 0:02:54]} 4. Bg2 {[%clk 0:02:59]}  O-O {[%clk 0:02:54]} 5. e3 {[%clk 0:02:58]}  d6 {[%clk 0:02:51]} 6. Nge2 {[%clk 0:02:58]}  e5 {[%clk 0:02:50]} 7. O-O {[%clk 0:02:58]}  Nc6 {[%clk 0:02:47]} 8. d3 {[%clk 0:02:53]}  Be6 {[%clk 0:02:43]} 9. Nd5 {[%clk 0:02:53]}  Qd7 {[%clk 0:02:35]} 10. Nec3 {[%clk 0:02:53]}  Bh3 {[%clk 0:02:29]} 11. Nxf6+ {[%clk 0:02:52]}  Bxf6 {[%clk 0:02:28]} 12. Nd5 {[%clk 0:02:53]}  Bd8 {[%clk 0:02:27]} 13. b4 {[%clk 0:02:54]}  Bxg2 {[%clk 0:02:26]} 14. Kxg2 {[%clk 0:02:55]}  f5 {[%clk 0:02:19]} 15. f4 {[%clk 0:02:54]}  Ne7 {[%clk 0:02:13]} 16. Nc3 {[%clk 0:02:41]}  d5 {[%clk 0:02:05]} 17. cxd5 {[%clk 0:02:36]}  exf4 {[%clk 0:01:56]} 18. gxf4 {[%clk 0:02:34]}  c6 {[%clk 0:01:51]} 19. e4 {[%clk 0:02:01]}  cxd5 {[%clk 0:01:50]} 20. exd5 {[%clk 0:01:57]}  Bb6 {[%clk 0:01:45]} 21. Bb2 {[%clk 0:01:52]}  Bd4 {[%clk 0:01:33]} 22. Qb3 {[%clk 0:01:46]}  Rf7 {[%clk 0:01:21]} 23. Rac1 {[%clk 0:01:42]}  Rd8 {[%clk 0:01:13]} 24. d6 {[%clk 0:01:21]}  Nc8 {[%clk 0:00:58]} 25. Rfe1 {[%clk 0:00:38]}  Nxd6 {[%clk 0:00:43]} 26. Nd5 {[%clk 0:00:38]}  Bxb2 {[%clk 0:00:33]} 27. Ne7+ {[%clk 0:00:38]}  Qxe7 {[%clk 0:00:23]} 28. Rxe7 {[%clk 0:00:26]}  Bxc1 {[%clk 0:00:23]} 29. Kf3 {[%clk 0:00:17]}  g5 {[%clk 0:00:14]} 30. fxg5 {[%clk 0:00:16]}  Bxg5 {[%clk 0:00:13]} 31. Re1 {[%clk 0:00:15]}  Nb5 {[%clk 0:00:08]} 32. Qb2 {[%clk 0:00:12]}  Nd4+ {[%clk 0:00:08]} 33. Kf2 {[%clk 0:00:12]}  Bh4+ {[%clk 0:00:08]} 34. Kf1 {[%clk 0:00:12]}  Bxe1 {[%clk 0:00:07]} 35. Kxe1 {[%clk 0:00:13]}  f4 {[%clk 0:00:07]} 36. Kf1 {[%clk 0:00:13]}  f3 {[%clk 0:00:07]} 37. Qf2 {[%clk 0:00:13]}  Rg7 {[%clk 0:00:03]} 38. Qh4 {[%clk 0:00:14]}  Rdd7 {[%clk 0:00:03]} 39. Qf4 {[%clk 0:00:13]}  Rgf7 {[%clk 0:00:03]} 40. Qb8+ {[%clk 0:00:13]}  Kg7 {[%clk 0:00:03]} 41. Qg3+ {[%clk 0:00:14]}  Kf8 {[%clk 0:00:03]} 42. Qh4 {[%clk 0:00:14]}  f2 {[%clk 0:00:03]} 43. Qh5 {[%clk 0:00:14]}  Nf3 {[%clk 0:00:03]} 44. Qh6+ {[%clk 0:00:15]}  Kg8 {[%clk 0:00:03]} 45. Kxf2 {[%clk 0:00:16]}  Ne5+ {[%clk 0:00:03]} 46. Kg3 {[%clk 0:00:16]}  Rxd3+ {[%clk 0:00:03]} 47. Kg2 {[%clk 0:00:15]}  Ng4 {[%clk 0:00:02]} 48. Qe6 {[%clk 0:00:14]}  Rd2+ {[%clk 0:00:02]} 49. Kg3 {[%clk 0:00:14]}  Nf6 {[%clk 0:00:02]} 50. Qc8+ {[%clk 0:00:14]}  Kg7 {[%clk 0:00:02]} 51. Qc3 {[%clk 0:00:14]}  Rdd7 {[%clk 0:00:03]} 52. h4 {[%clk 0:00:13]}  Kg8 {[%clk 0:00:04]} 53. Kg2 {[%clk 0:00:13]}  Rg7+ {[%clk 0:00:05]} 54. Kf1 {[%clk 0:00:12]}  Ng4 {[%clk 0:00:05]} 55. Qc4+ {[%clk 0:00:12]}  Rdf7+ {[%clk 0:00:04]} 56. Ke2 {[%clk 0:00:13]}  Nf6 {[%clk 0:00:04]} 57. Qb3 {[%clk 0:00:12]}  h5 {[%clk 0:00:04]} 58. b5 {[%clk 0:00:07]}  Kh8 {[%clk 0:00:04]} 59. Qb4 {[%clk 0:00:06]}  Re7+ {[%clk 0:00:05]} 60. Kd3 {[%clk 0:00:07]}  Ng4 {[%clk 0:00:05]} 61. Qc3 {[%clk 0:00:06]}  Ne5+ {[%clk 0:00:06]} 62. Kc2 {[%clk 0:00:06]}  Rg2+ {[%clk 0:00:06]} 63. Kb3 {[%clk 0:00:06]}  Rf2 {[%clk 0:00:06]} 64. Qd4 {[%clk 0:00:06]}  Rf3+ {[%clk 0:00:06]} 65. Kc2 {[%clk 0:00:07]}  Rff7 {[%clk 0:00:05]} 66. Qd8+ {[%clk 0:00:07]}  Kh7 {[%clk 0:00:05]} 67. Qd6 {[%clk 0:00:08]}  Ng6 {[%clk 0:00:05]} 68. Qd5 {[%clk 0:00:07]}  Rc7+ {[%clk 0:00:05]} 69. Kb2 {[%clk 0:00:06]}  Rfd7 {[%clk 0:00:05]} 70. Qxh5+ {[%clk 0:00:06]}  Kg7 {[%clk 0:00:05]} 71. Qg5 {[%clk 0:00:06]}  Kh7 {[%clk 0:00:03]} 72. h5 {[%clk 0:00:06]}  Ne7 {[%clk 0:00:03]} 73. Qf6 {[%clk 0:00:06]}  Rd2+ {[%clk 0:00:03]} 74. Kb3 {[%clk 0:00:07]}  Rd3+ {[%clk 0:00:03]} 75. Kb2 {[%clk 0:00:07]}  Rd2+ {[%clk 0:00:03]} 76. Kb3 {[%clk 0:00:07]}  Rd3+ {[%clk 0:00:03]} 77. Kb2 {[%clk 0:00:08]}  Rd2+ {[%clk 0:00:03]} 1/2-1/2


[Site "https://www.chess.com"]

[Event "Titled Tuesday Blitz September 28 2021"]
[White "Drozdowski, Kacper"]
[Black "Tristan, Leonardo"]
[WhiteFideId "1136720"]
[BlackFideId "113816"]
[WhiteElo "2507"]
[BlackElo "2404"]
[Result "1-0"]
[Round "04"]
[TimeControl "180+1"]
[Date "2021.09.28"]
[WhiteClock "0:00:46"]
[BlackClock "0:00:02"]

1. e4 {[%clk 0:03:00]}  d5 {[%clk 0:03:00]} 2. exd5 {[%clk 0:03:00]}  Qxd5 {[%clk 0:03:01]} 3. Nf3 {[%clk 0:02:59]}  Bg4 {[%clk 0:03:00]} 4. Be2 {[%clk 0:03:00]}  Nc6 {[%clk 0:03:01]} 5. O-O {[%clk 0:02:59]}  O-O-O {[%clk 0:03:00]} 6. Nc3 {[%clk 0:03:00]}  Qd7 {[%clk 0:02:59]} 7. d3 {[%clk 0:02:59]}  Nf6 {[%clk 0:02:47]} 8. h3 {[%clk 0:02:59]}  Bxf3 {[%clk 0:02:47]} 9. Bxf3 {[%clk 0:02:58]}  Nd4 {[%clk 0:02:48]} 10. Be3 {[%clk 0:02:58]}  Nxf3+ {[%clk 0:02:42]} 11. Qxf3 {[%clk 0:02:59]}  Kb8 {[%clk 0:02:32]} 12. Rfe1 {[%clk 0:02:59]}  e6 {[%clk 0:02:32]} 13. a3 {[%clk 0:02:52]}  Nd5 {[%clk 0:02:31]} 14. Nxd5 {[%clk 0:02:48]}  exd5 {[%clk 0:02:30]} 15. Bd4 {[%clk 0:02:46]}  f6 {[%clk 0:02:30]} 16. Re2 {[%clk 0:02:45]}  c5 {[%clk 0:02:29]} 17. Bc3 {[%clk 0:02:44]}  Bd6 {[%clk 0:02:16]} 18. Rae1 {[%clk 0:02:44]}  d4 {[%clk 0:02:16]} 19. Bd2 {[%clk 0:02:43]}  Rhe8 {[%clk 0:02:03]} 20. Kf1 {[%clk 0:02:42]}  Rxe2 {[%clk 0:01:57]} 21. Rxe2 {[%clk 0:02:42]}  Re8 {[%clk 0:01:49]} 22. Rxe8+ {[%clk 0:02:37]}  Qxe8 {[%clk 0:01:50]} 23. Qf5 {[%clk 0:02:36]}  h6 {[%clk 0:01:22]} 24. Qd5 {[%clk 0:02:36]}  Qe7 {[%clk 0:01:20]} 25. a4 {[%clk 0:02:33]}  a6 {[%clk 0:01:12]} 26. g4 {[%clk 0:02:32]}  Ka7 {[%clk 0:01:04]} 27. Kg2 {[%clk 0:02:30]}  Qc7 {[%clk 0:01:03]} 28. Kf3 {[%clk 0:02:28]}  g5 {[%clk 0:00:56]} 29. Ke2 {[%clk 0:02:02]}  Be7 {[%clk 0:00:32]} 30. Qe6 {[%clk 0:02:00]}  Bd8 {[%clk 0:00:29]} 31. c3 {[%clk 0:01:51]}  dxc3 {[%clk 0:00:27]} 32. Bxc3 {[%clk 0:01:50]}  Qf4 {[%clk 0:00:25]} 33. a5 {[%clk 0:01:44]}  Qa4 {[%clk 0:00:16]} 34. Qc4 {[%clk 0:01:31]}  Qc2+ {[%clk 0:00:14]} 35. Ke3 {[%clk 0:01:32]}  Qc1+ {[%clk 0:00:13]} 36. Ke4 {[%clk 0:01:32]}  Qh1+ {[%clk 0:00:12]} 37. Kf5 {[%clk 0:01:29]}  Qf3+ {[%clk 0:00:11]} 38. Kg6 {[%clk 0:01:30]}  Qxf2 {[%clk 0:00:12]} 39. Kxh6 {[%clk 0:01:27]}  Qf3 {[%clk 0:00:12]} 40. Qxc5+ {[%clk 0:01:24]}  Kb8 {[%clk 0:00:10]} 41. Qd6+ {[%clk 0:01:23]}  Kc8 {[%clk 0:00:08]} 42. Kg6 {[%clk 0:01:19]}  Qxh3 {[%clk 0:00:09]} 43. Qe6+ {[%clk 0:01:17]}  Kb8 {[%clk 0:00:08]} 44. Qd7 {[%clk 0:01:08]}  Qh8 {[%clk 0:00:05]} 45. Bb4 {[%clk 0:00:57]}  Qg8+ {[%clk 0:00:05]} 46. Kf5 {[%clk 0:00:57]}  Bc7 {[%clk 0:00:04]} 47. Kxf6 {[%clk 0:00:51]}  Qh8+ {[%clk 0:00:03]} 48. Kf5 {[%clk 0:00:50]}  Qxb2 {[%clk 0:00:02]} 49. Bc5 {[%clk 0:00:46]} 1-0


[Site "https://www.chess.com"]

[Event "Titled Tuesday Blitz September 28 2021"]
[White "Fier, Alexandr"]
[Black "Demin, Vladimir"]
[WhiteFideId "2107139"]
[BlackFideId "4167457"]
[WhiteElo "2569"]
[BlackElo "2508"]
[Result "1-0"]
[Round "04"]
[TimeControl "180+1"]
[Date "2021.09.28"]
[WhiteClock "0:00:53"]
[BlackClock "0:01:19"]

1. d4 {[%clk 0:02:31]}  Nf6 {[%clk 0:02:59]} 2. Bg5 {[%clk 0:02:31]}  d5 {[%clk 0:02:59]} 3. Bxf6 {[%clk 0:02:30]}  gxf6 {[%clk 0:02:57]} 4. c4 {[%clk 0:02:30]}  c6 {[%clk 0:02:57]} 5. cxd5 {[%clk 0:02:29]}  cxd5 {[%clk 0:02:56]} 6. Nc3 {[%clk 0:02:30]}  Nc6 {[%clk 0:02:56]} 7. e3 {[%clk 0:02:30]}  e6 {[%clk 0:02:52]} 8. Qh5 {[%clk 0:02:30]}  Bb4 {[%clk 0:02:47]} 9. Nf3 {[%clk 0:02:29]}  Qa5 {[%clk 0:02:46]} 10. Rc1 {[%clk 0:02:28]}  Qxa2 {[%clk 0:02:44]} 11. Kd1 {[%clk 0:01:35]}  Qxb2 {[%clk 0:02:39]} 12. Nb5 {[%clk 0:01:29]}  Bd7 {[%clk 0:02:23]} 13. Bd3 {[%clk 0:01:09]}  Ke7 {[%clk 0:02:16]} 14. Rf1 {[%clk 0:01:00]}  a6 {[%clk 0:02:07]} 15. Nc7 {[%clk 0:01:00]}  Rac8 {[%clk 0:02:07]} 16. Nxd5+ {[%clk 0:00:58]}  exd5 {[%clk 0:02:07]} 17. Rc2 {[%clk 0:00:58]}  Qb3 {[%clk 0:02:05]} 18. Ke2 {[%clk 0:00:58]}  Ne5 {[%clk 0:01:42]} 19. Nxe5 {[%clk 0:00:55]}  Rxc2+ {[%clk 0:01:41]} 20. Kf3 {[%clk 0:00:55]}  Rd2 {[%clk 0:01:19]} 21. Qxf7+ {[%clk 0:00:53]} 1-0


[Site "https://www.chess.com"]